Cogmind - Beta 13 @@@ ROGUE MODE // 2024.04.05 @ 23:52:18 Player: desiring-machine Result: Destroyed by G-47 Trooper with Particle Gun Performance ------------- Evolutions (2) 1000 Regions Visited (4) 800 Robots Destroyed (52) 260 Value Destroyed (1109) 1109 Prototype IDs (3) 60 Alien Tech Used (0) 0 Bonus (110) 110 TOTAL SCORE: 3339 Bonus ------- High Alert Combat Kills 110 Cogmind --------- Core Integrity 0/550 Matter 15/300 Energy 279/280 System Corruption 0% Temperature Cool (9) Movement Core (150) Ox2 Location -8/Storage Parts ------- > --- POWER (1) -------- Cooled Ion Engine > --- PROPULSION (4) --- (None) > --- UTILITY (4) ------ (None) > --- WEAPON (2) ------- (None) > --- INVENTORY (5) ---- Aerolev Unit Machine Analyzer EM Pulse Gun Rocket Launcher Mini Grenade Launcher Peak State ------------ > --- POWER ------------ Deuterium Engine > --- PROPULSION ------- Improved Hover Unit Aerolev Unit > --- UTILITY ---------- ECM Suite > --- WEAPON ----------- Mini Grenade Launcher Heavy Rocket Launcher > --- INVENTORY -------- Light Nuclear Core Actuator Array EM Pulse Gun Shock Rifle Heavy Assault Rifle [Rating: 17] Favorites ----------- Power Light Ion Engine Engine Light Ion Engine Power Core Light Nuclear Core Propulsion Aluminum Leg Leg Aluminum Leg Hover Unit Improved Hover Unit Flight Unit Flight Unit Utility ECM Suite Device ECM Suite Processor Terrain Scan Processor Protection Light Armor Plating Weapon Light Assault Rifle Energy Gun Small Laser Energy Cannon Beam Cannon Ballistic Gun Light Assault Rifle Launcher Mini Grenade Launcher Build | -11 -10 -9 -8 -8 ------- Run | Yrd Mat Mat Mat Sto Slots Evolved 4 | . . 2 2 . Power . | . . . . . Propulsion 2 | . . 1 1 . Utility 2 | . . 1 1 . Weapon . | . . . . . Parts Attached 51 | 5 7 19 20 . Power 6 | 1 1 1 3 . Engine 5 | 1 1 1 2 . Core 1 | . . . 1 . Reactor . | . . . . . Propulsion 19 | 2 2 7 8 . Treads . | . . . . . Leg 4 | 2 2 . . . Wheel . | . . . . . Hover 6 | . . 2 4 . Flight 9 | . . 5 4 . Utility 11 | . 3 5 3 . Device 6 | . 1 2 3 . Storage . | . . . . . Processor 2 | . . 2 . . Hackware . | . . . . . Protection 3 | . 2 1 . . Artifact . | . . . . . Weapon 15 | 2 1 6 6 . Energy Gun 3 | 1 1 . 1 . Energy Cannon 2 | . . 2 . . Ballistic Gun 3 | 1 . 2 . . Ballistic Cannon . | . . . . . Launcher 7 | . . 2 5 . Special Weapon . | . . . . . Impact Weapon . | . . . . . Slashing Weapon . | . . . . . Piercing Weapon . | . . . . . Special Melee Weapon . | . . . . . Unidentified Prototypes 3 | . . 1 2 . Parts Lost 19 | . 4 3 9 3 Power 3 | . 1 . 2 . Propulsion 12 | . 3 1 6 2 Utility 3 | . . 2 . 1 Weapon 1 | . . . 1 . Highest Loss Streak 3 | . 2 2 3 3 To Critical Strikes . | . . . . . Average Slot Usage (%) 63 | . 81 80 38 24 Engine 8 | . 9 11 6 9 Leg 11 | . 27 4 . . Hover 2 | . . 3 6 . Flight 6 | . . 17 7 6 Device 6 | . 7 3 6 9 Processor 3 | . . 12 2 . Protection 4 | . 8 6 . . Energy Gun 6 | . 14 5 1 . Ballistic Gun 7 | . 14 8 . . Launcher 3 | . . 5 7 . Naked Turns . | . . . . . Heaviest Build 18 | 5 14 14 18 10 Greatest Support 20 | 20 20 13 15 10 Greatest Overweight (x) 3 | . 2 1 2 3 Average Overweight (x) . | . . . . . Largest Inventory Capacity 5 | 5 5 5 5 5 Average Capacity 5 | 5 5 5 5 5 Most Carried 5 | 5 5 5 5 5 Average Carried 3 | 1 2 4 4 5 Final Capacity 5 | 5 5 5 5 5 Final Carried 5 | 1 4 4 5 5 Class Distribution -------------------- 92% | Mutant 7% | Scavenger-Mutant Dominant Class ---------------- Mutant | -10/Materials Mutant | -9/Materials Mutant | -8/Materials Mutant | -8/Storage Resources | -11 -10 -9 -8 -8 ----------- Run | Yrd Mat Mat Mat Sto Matter Collected 874 | 222 119 200 333 . Remotely . | . . . . . Salvage Created 1027 | . 322 497 208 . Parts 95 | . 16 60 19 . Haulers Intercepted 2 | . . 2 . . Recyclers Shooed 2 | . . 2 . . Parts Field Recycled . | . . . . . Retrieved Matter . | . . . . . Parts Self-Destructed . | . . . . . Prevented . | . . . . . Kills | -11 -10 -9 -8 -8 ------- Run | Yrd Mat Mat Mat Sto Combat Hostiles Destroyed 35 | . 7 17 11 . Guns 14 | . 7 6 1 . Cannons 2 | . . 2 . . AOE 19 | . . 9 10 . Classes Destroyed 10 | . 1 6 3 . Worker 4 | . . 3 1 . Builder 3 | . . 1 2 . Hauler 2 | . . 2 . . Recycler 2 | . . 2 . . Operator 1 | . . . 1 . Watcher 5 | . . 3 2 . Swarmer 18 | . . 14 4 . Grunt 13 | . 7 3 3 . Sentry 3 | . . . 3 . Hunter 1 | . . . 1 . Best Kill Streak 13 | . 3 13 11 . Combat Bots Only 8 | . 3 7 8 . Max Kills in Single Turn 3 | . 1 3 2 . Gunslinging . | . . . . . Exploded 3 | . . 3 2 . Melee . | . . . . . Uniques/NPCs Destroyed . | . . . . . Combat | -11 -10 -9 -8 -8 -------- Run | Yrd Mat Mat Mat Sto Hostile Shots Fired 267 | . 73 61 84 49 Missed 100 | . 24 22 37 17 Damage Taken 2220 | . 621 355 798 446 Core 774 | . 116 97 263 298 Absorbed by Shields . | . . . . . Core Remaining (%) 76 | 100 53 75 . . Volleys Fired 116 | . 45 38 33 . Largest 2 | . 2 2 2 . Hottest 90 | . 70 90 60 . Shots Fired 186 | . 88 56 42 . Gun 140 | . 88 38 14 . Cannon 6 | . . 6 . . Launcher 40 | . . 12 28 . Special . | . . . . . Kinetic 81 | . 45 26 10 . Thermal 61 | . 43 18 . . Explosive 40 | . . 12 28 . Electromagnetic 4 | . . . 4 . Robot Hit Streak 8 | . 8 8 8 . Robot Miss Streak 7 | . 4 7 1 . Penetration Max . | . . . . . Secondary Targets 3 | . 2 1 . . Max Gunslinging Chain 1 | . 1 1 . . Shots Hit Robots 96 | . 43 28 25 . Core Hits 92 | . 19 38 35 . Critical Kills . | . . . . . Critical Parts Destroyed . | . . . . . Critical Strikes . | . . . . . Melee Attacks . | . . . . . Impact . | . . . . . Slashing . | . . . . . Piercing . | . . . . . Sneak Attacks . | . . . . . Combat Hostiles . | . . . . . Follow-up Attacks . | . . . . . Damage Inflicted 3335 | . 438 1536 1361 . Guns 877 | . 434 327 116 . Cannons 51 | . . 51 . . Explosions 2384 | . . 1158 1226 . Melee . | . . . . . Ramming 23 | . 4 . 19 . Kinetic 445 | . 167 214 64 . Thermal 431 | . 267 164 . . Explosive 2384 | . . 1158 1226 . Electromagnetic 52 | . . . 52 . Impact . | . . . . . Slashing . | . . . . . Piercing . | . . . . . Highest Corruption . | . . . . . Average Corruption . | . . . . . Corruption Purged . | . . . . . Corruption Blocked . | . . . . . Overload Shots . | . . . . . Overflow Damage 71 | . . 70 1 . Projectiles . | . . . . . Explosions 70 | . . 70 . . Melee 1 | . . . 1 . Knockbacks . | . . . . . Impact . | . . . . . Kinetic . | . . . . . Secondary . | . . . . . Self-Inflicted Damage 120 | . . 2 118 . Shots 7 | . . 1 6 . Rammed 2 | . . . 2 . Targets Rammed 4 | . 2 . 2 . Kicked 2 | . 2 . . . Crushed . | . . . . . Highest Temperature 367 | . 367 195 25 . Average Temperature 93 | . 102 94 11 . Received Heat Transfer 747 | . 354 15 243 135 Effects 1 | . 1 . . . Shutdowns 1 | . 1 . . . Siege Activations . | . . . . . Robots Corrupted . | . . . . . Combat Hostiles . | . . . . . Parts Fried . | . . . . . Impact Corruptions 1 | . . . 1 . Robots Melted . | . . . . . Combat Hostiles . | . . . . . Parts Melted 2 | . 1 1 . . Heat Transferred 1103 | . 659 444 . . Parts Sabotaged . | . . . . . Parts Stolen . | . . . . . Parts Stripped . | . . . . . Power Chain Reactions . | . . . . . Alert | -11 -10 -9 -8 -8 ------- Run | Yrd Mat Mat Mat Sto Peak Influence 791 | . 165 669 791 327 Initial 287 | . . 35 282 287 Average 320 | . 64 242 658 313 Maximum Alert Level 3 | . . 2 3 1 Low Security (%) 52 | 100 100 62 . . Level 1 9 | . . 16 5 100 Level 2 24 | . . 21 56 . Level 3 13 | . . . 37 . Level 4 . | . . . . . Level 5 . | . . . . . High Security . | . . . . . Max Security . | . . . . . Squads Dispatched 3 | . 1 . 2 . Investigation . | . . . . . Extermination . | . . . . . Reinforcement 2 | . 1 . 1 . Assault 1 | . . . 1 . Garrison . | . . . . . Intercept . | . . . . . Searches Triggered . | . . . . . Construction Impeded . | . . . . . Haulers Reinforced . | . . . . . Active Scanning Responses . | . . . . . Cargo Convoy Interrupts . | . . . . . Stealth | -11 -10 -9 -8 -8 --------- Run | Yrd Mat Mat Mat Sto Distress Signals 5 | . 2 1 1 1 Communications Jammed . | . . . . . Distress Signals . | . . . . . Times Spotted 98 | . 24 22 41 11 Peak Tracking Total 11 | . 5 5 9 11 Tactical Retreats 8 | . 1 1 6 . Traps | -11 -10 -9 -8 -8 ------- Run | Yrd Mat Mat Mat Sto Traps Triggered 2 | . . 2 . . Indirectly . | . . . . . Trap Hack Attempts . | . . . . . Triggered . | . . . . . Disarmed . | . . . . . Reprogrammed . | . . . . . Reused . | . . . . . Traps Extracted . | . . . . . Installed . | . . . . . Triggered . | . . . . . Machines | -11 -10 -9 -8 -8 ---------- Run | Yrd Mat Mat Mat Sto Machines Disabled 8 | . . 4 4 . Max in Single Turn 2 | . . 1 2 . Machines Repaired . | . . . . . Machines Dismantled . | . . . . . Machines Sabotaged . | . . . . . Overloaded Fab Kills . | . . . . . Hacking | -11 -10 -9 -8 -8 --------- Run | Yrd Mat Mat Mat Sto Machines Accessed . | . . . . . Terminals . | . . . . . Fabricators . | . . . . . Repair Stations . | . . . . . Recycling Units . | . . . . . Scanalyzers . | . . . . . Garrison Access . | . . . . . Total Hacks . | . . . . . Successful . | . . . . . Failed . | . . . . . Catastrophic . | . . . . . Database Lockouts . | . . . . . Manual . | . . . . . Terminals . | . . . . . Fabricators . | . . . . . Repair Stations . | . . . . . Recycling Units . | . . . . . Scanalyzers . | . . . . . Garrison Access . | . . . . . Terminal Hacks . | . . . . . Fabricator Hacks . | . . . . . Repair Station Hacks . | . . . . . Recycling Unit Hacks . | . . . . . Scanalyzer . | . . . . . Garrison Access Hacks . | . . . . . Unauthorized Hacks . | . . . . . Terminals . | . . . . . Fabricators . | . . . . . Repair Stations . | . . . . . Recycling Units . | . . . . . Scanalyzers . | . . . . . Garrison Access . | . . . . . Data Cores Recovered 1 | . . . 1 . Used . | . . . . . Hacking Detections . | . . . . . Full Trace Events . | . . . . . Feedback Events . | . . . . . Feedback Blocked . | . . . . . Robot Schematics Acquired . | . . . . . Robots Built . | . . . . . Authchips . | . . . . . Time . | . . . . . Total Robot Build Rating . | . . . . . Part Schematics Acquired . | . . . . . Parts Built . | . . . . . Authchips . | . . . . . Time . | . . . . . Total Part Build Rating . | . . . . . Parts Repaired . | . . . . . Time . | . . . . . Parts Recycled . | . . . . . Recycled Matter . | . . . . . Retrieved Matter . | . . . . . Retrieved Components . | . . . . . Parts Scanalyzed . | . . . . . Part Schematics Acquired . | . . . . . Parts Damaged . | . . . . . Bothacking | -11 -10 -9 -8 -8 ------------ Run | Yrd Mat Mat Mat Sto Used RIF Installer . | . . . . . Robots Hacked . | . . . . . Non-combat . | . . . . . Combat . | . . . . . Robot Hacks Applied . | . . . . . Relay Couplers Released . | . . . . . Fabnet Peak Effective % . | . . . . . Robots Rewired . | . . . . . Allies Hacked . | . . . . . Hacks Repelled . | . . . . . Allies | -11 -10 -9 -8 -8 -------- Run | Yrd Mat Mat Mat Sto Total Allies . | . . . . . Largest Group . | . . . . . Highest-Rated Group . | . . . . . Highest-Rated Ally . | . . . . . Total Orders . | . . . . . Ally Attacks . | . . . . . Total Damage . | . . . . . Kills . | . . . . . Allies Corrupted . | . . . . . Allies Melted . | . . . . . Intel | -11 -10 -9 -8 -8 ------- Run | Yrd Mat Mat Mat Sto Robot Analysis Total . | . . . . . Derelict Logs Recovered . | . . . . . Drone Launches . | . . . . . Drone Recoveries . | . . . . . Exploration | -11 -10 -9 -8 -8 ------------- Run | Yrd Mat Mat Mat Sto Turns Passed 1636 | 39 617 333 580 67 Spaces Moved 1517 | 33 376 351 684 73 Core 40 | 16 2 . 5 17 Treads . | . . . . . Legs 424 | 17 374 33 . . Wheels . | . . . . . Hover 338 | . . 22 316 . Flight 715 | . . 296 363 56 Fastest Speed 32 | 50 120 34 32 32 Average Speed 78 | 86 121 53 65 89 Slowest Speed 200 | 120 190 190 200 200 Overloaded Moves . | . . . . . Propulsion Burnouts . | . . . . . Robots Hopped . | . . . . . Cave-ins Triggered . | . . . . . Exploration Rate (%) 36 | 3 57 36 61 24 Regions Visited 4 Branch Regions 1 Pre-discovered Areas . | . . . . . Known Exits Taken . | . . . . . Unknown Exits Taken 4 | 1 1 1 1 . Scrap Searched . | . . . . . Spaces Dug 9 | . . 9 . . Terrain Destroyed 231 | . . 73 158 . Melee . | . . . . . Projectile . | . . . . . AOE 231 | . . 73 158 . Terrain Rammed . | . . . . . Walls Destroyed . | . . . . . Machines Disabled . | . . . . . Actions | -11 -10 -9 -8 -8 --------- Run | Yrd Mat Mat Mat Sto Total 1795 | 43 456 446 774 76 Wait 26 | . 15 4 4 3 Move 1513 | 32 375 350 683 73 Hop . | . . . . . Pick Up 55 | 6 10 21 18 . Fast Attach . | . . . . . Attach 39 | 5 5 15 14 . Detach 6 | . . 2 4 . Swap 12 | . 2 4 6 . Drop 24 | . 2 12 10 . Fire 116 | . 45 38 33 . Melee . | . . . . . Ram 2 | . . . 2 . Kick 2 | . 2 . . . Crush . | . . . . . Escape Stasis . | . . . . . Rewire . | . . . . . Trap . | . . . . . Miscellaneous . | . . . . . Route ------- -11/Scrapyard -10/Materials (discovered 2 exits: [*Mat x2]) -9/Materials -8/Materials -8/Storage History --------- Turn | Location | Event 19 | -11/Scrapyard | Discovered new exit (range 14) 40 | -11/Scrapyard | Entered Materials 303 | -10/Materials | Build established: Mutant 446 | -10/Materials | Discovered new exit (range 15) 616 | -10/Materials | Discovered new exit (range 16) 657 | -10/Materials | Entered another Materials area 657 | -9/Materials | Evolved 2 slots: Propulsion x1, Utility x1 898 | -9/Materials | Destroyed 7 combat bots 974 | -9/Materials | Discovered new exit (range 16) 990 | -9/Materials | Entered another Materials area 990 | -8/Materials | Evolved 2 slots: Propulsion x1, Utility x1 1056 | -8/Materials | Lost 3 parts (1p2n) 1071 | -8/Materials | Destroyed 8 combat bots 1390 | -8/Materials | First assault squad dispatched 1555 | -8/Materials | Discovered new exit (range 4) 1570 | -8/Materials | Entered Storage 1586 | -8/Storage | Core integrity fell below 50% 1628 | -8/Storage | Core integrity fell below 20% 1637 | -8/Storage | Destroyed by G-47 Trooper with Particle Gun Last Messages --------------- Identified Cld. Ion Engine. The Cld. Ion Engine is "overloadable", activating it again increases its energy generation and heat output, and may have unintended consequences. Acquired Machine Analyzer. LOCATION=UNKNOWN GOAL=ESCAPE Cesium-ion Thruster destroyed. K-01 Serf collects debris. Cesium-ion Thruster destroyed. K-01 Serf cleans the Storage Shell. Critical hit (Burn: +37). Slug penetrates Wall. W-25 Informer sends out distress signal. K-01 Serf collects debris. ECM Suite destroyed. Penetrated by Slug. Terminal disabled. Penetrated by Slug. Map ----- +----------------------------------------------------+ | | | ???????????????????????????????????????????????? | | ???????????????????????????????????????????????? | | ???????????????????????????????????????????????? | | ???????????????????????????????????????????????? | | ???????????????????????????????????????????????? | | ???????????????????????????????????????????????? | | ???????????????????????????????????????????????? | | ???????????????????????????????????????????????? | | ???????????????????????????????????????????????? | | ???????????????????????????????????????????????? | | ???????????????????????????????????????????????? | | ???????????????????????????????????????????????? | | ???????????????????????????????????????????????? | | ???????????????????????????????????????????????? | | ???????????????????????????????????????????????? | | ???????????????????????????????????????????????? | | ?????????????????????????????????????????????##? | | ?????????????????????????????????????????????# # | | ?????????????????????????????????????????????? | | ??????????????????????###+#####+####?????????? | | ??????????????????????# # ??????????" | | ??????????????????????# # "?????????"" | | ??????????????????????# """ """ # "??????# """ | | ??????????????????????# """ """ # "??????# | | ?????????????????????##@""" """ # ""?????# | | ?????????????????????# # ""????# | | ?????????????????????## # """" ##"T"# | | ??????????????????????# s h # ###??? | | ???????????????""" ######g######+##+########### | | ???????????? | | ???????????? | | ?????????????? """ | | ????????????????"" ####################### | | ????????????????"" ??????????????????????? | | ??????????????? ??????????????????????? | | ?????????????? ???????????????????????? | | ?????????????? """ ???????????????????????? | | ???????????????""" ???????????????????????? | | ????????????????"" ????????????????????????? | | ????????????????? ????????????????????????? | | ???????????????? ?????????????????????????? | | ??????????????????? ?????????????????????????? | | ???????????????????????????????????????????????? | | ???????????????????????????????????????????????? | | ???????????????????????????????????????????????? | | ???????????????????????????????????????????????? | | ???????????????????????????????????????????????? | | ???????????????????????????????????????????????? | | ???????????????????????????????????????????????? | +----------------------------------------------------+ Best States ------------- Heat Dissipation 31 Energy Generation 14 Energy Capacity 280 Matter Stores 300 Matter Capacity 300 Sight Range 16 Terrain Scan Density 85 ECM Strength 1 Armor Coverage 300 Resistance: EX 25 Evasion (%) 63 Targeting Accuracy 6 Item Schematics ----------------- None Robot Schematics ------------------ None Fabricated ------------ Nothing Alien Tech Used ----------------- None Achievements -------------- Oops Remodeling Significant Disruption Challenges ------------ None Game ------ Seed GyrokineticVisualCarapace Manual? 0 Play Time 00:33:49 Cumulative 2.1 hours Start 2024.04.05 @ 23:19:03 End 2024.04.05 @ 23:52:18 Sessions 1 Manual Loads 0 Difficulty Rogue Special Mode None Game No. 4 Rogue 4 Adventurer 0 Explorer 0 Win Type - Total 0 Types 0/0/0/0/0/0/0/0/0 Lore% 8 Gallery% 5 Achievement% 5 Wizard Run 0 Options --------- Layout 1 ASCII 0 Keyboard 0 Movement Numpad Keybinds 0 Fullscreen 1 Font 24/Smallcaps Map View 50x35 Zoom Use 0% Tactical HUD 0 Map Filters NONE Filters NONE Steam 0 RUN: 7e37f184-e56c-41c2-9fca-40b44e89320f